[Event "Titled Tuesday Blitz June 27 Early 2023"]
[White "Rodchenkov, Sergey D."]
[Black "Hoffmann, Asa"]
[WhiteFideId "4168712"]
[BlackFideId "2001470"]
[WhiteElo "2535"]
[BlackElo "2404"]
[Result "0-1"]
[Round "9"]
[TimeControl "180+2"]
[Date "2023.06.27"]
[WhiteClock "0:00:19"]
[BlackClock "0:00:23"]
[Board "100"]

1. e4 {[%clk 0:03:00]}  d6 {[%clk 0:02:53]} 2. d4 {[%clk 0:03:00]}  Nf6 {[%clk 0:02:51]} 3. Nc3 {[%clk 0:03:00]}  c6 {[%clk 0:02:51]} 4. f4 {[%clk 0:03:00]}  Qa5 {[%clk 0:02:50]} 5. Bd3 {[%clk 0:03:00]}  e5 {[%clk 0:02:49]} 6. Ne2 {[%clk 0:03:00]}  Bg4 {[%clk 0:02:48]} 7. Be3 {[%clk 0:03:01]}  Nbd7 {[%clk 0:02:41]} 8. O-O {[%clk 0:03:00]}  Be7 {[%clk 0:02:40]} 9. h3 {[%clk 0:02:59]}  Bxe2 {[%clk 0:02:39]} 10. Nxe2 {[%clk 0:03:00]}  O-O {[%clk 0:02:31]} 11. c3 {[%clk 0:02:59]}  Qc7 {[%clk 0:02:23]} 12. Ng3 {[%clk 0:02:59]}  Rfe8 {[%clk 0:02:22]} 13. Qf3 {[%clk 0:02:46]}  Bf8 {[%clk 0:02:19]} 14. Rae1 {[%clk 0:02:44]}  b5 {[%clk 0:02:09]} 15. h4 {[%clk 0:02:42]}  g6 {[%clk 0:01:42]} 16. h5 {[%clk 0:02:38]}  Bg7 {[%clk 0:01:41]} 17. f5 {[%clk 0:02:28]}  gxh5 {[%clk 0:01:36]} 18. Nxh5 {[%clk 0:02:27]}  Nxh5 {[%clk 0:01:34]} 19. Qxh5 {[%clk 0:02:28]}  Nf6 {[%clk 0:01:31]} 20. Qh4 {[%clk 0:02:27]}  Kh8 {[%clk 0:01:28]} 21. Bg5 {[%clk 0:02:24]}  Ng8 {[%clk 0:01:20]} 22. f6 {[%clk 0:02:16]}  Bf8 {[%clk 0:01:17]} 23. Rf3 {[%clk 0:02:07]}  h6 {[%clk 0:01:16]} 24. Rh3 {[%clk 0:02:02]}  Qd7 {[%clk 0:01:13]} 25. d5 {[%clk 0:01:58]}  a6 {[%clk 0:01:08]} 26. Kf2 {[%clk 0:01:58]}  cxd5 {[%clk 0:00:57]} 27. exd5 {[%clk 0:01:59]}  e4 {[%clk 0:00:57]} 28. Bxe4 {[%clk 0:01:47]}  Re5 {[%clk 0:00:55]} 29. Bxh6 {[%clk 0:01:34]}  Bxh6 {[%clk 0:00:51]} 30. Qxh6+ {[%clk 0:01:34]}  Nxh6 {[%clk 0:00:48]} 31. Rxh6+ {[%clk 0:01:35]}  Kg8 {[%clk 0:00:48]} 32. Reh1 {[%clk 0:01:35]}  Rf5+ {[%clk 0:00:38]} 33. Kg1 {[%clk 0:01:31]}  Qa7+ {[%clk 0:00:30]} 34. Kh2 {[%clk 0:01:22]}  Qe3 {[%clk 0:00:24]} 35. Bxf5 {[%clk 0:00:34]}  Qxh6+ {[%clk 0:00:23]} 36. Kg1 {[%clk 0:00:19]}  Qxf6 {[%clk 0:00:23]} 0-1


[Site "https://www.chess.com"]

[Event "Titled Tuesday Blitz June 27 Early 2023"]
[White "Shubenkova, Veronika"]
[Black "Fernandez Siles, Luis"]
[WhiteFideId "44124040"]
[BlackFideId "2209420"]
[WhiteElo "2500"]
[BlackElo "2372"]
[Result "1-0"]
[Round "9"]
[TimeControl "180+2"]
[Date "2023.06.27"]
[WhiteClock "0:02:14"]
[BlackClock "0:00:44"]
[Board "102"]

1. e4 {[%clk 0:03:00]}  c5 {[%clk 0:02:58]} 2. Nc3 {[%clk 0:03:00]}  Nc6 {[%clk 0:02:57]} 3. g3 {[%clk 0:03:01]}  g6 {[%clk 0:02:55]} 4. Bg2 {[%clk 0:03:02]}  Bg7 {[%clk 0:02:55]} 5. d3 {[%clk 0:03:03]}  e6 {[%clk 0:02:55]} 6. f4 {[%clk 0:03:04]}  d5 {[%clk 0:02:50]} 7. exd5 {[%clk 0:03:00]}  exd5 {[%clk 0:02:50]} 8. Nxd5 {[%clk 0:02:58]}  Nh6 {[%clk 0:02:47]} 9. Ne2 {[%clk 0:02:57]}  O-O {[%clk 0:02:39]} 10. O-O {[%clk 0:02:57]}  Re8 {[%clk 0:02:28]} 11. c4 {[%clk 0:02:52]}  Bg4 {[%clk 0:02:12]} 12. Bf3 {[%clk 0:02:52]}  Bh3 {[%clk 0:01:43]} 13. Rf2 {[%clk 0:02:43]}  Ng4 {[%clk 0:01:40]} 14. Bxg4 {[%clk 0:02:41]}  Bxg4 {[%clk 0:01:40]} 15. Be3 {[%clk 0:02:35]}  Bxb2 {[%clk 0:01:23]} 16. Rb1 {[%clk 0:02:35]}  Bd4 {[%clk 0:01:23]} 17. Qd2 {[%clk 0:02:23]}  Bxe3 {[%clk 0:01:02]} 18. Nxe3 {[%clk 0:02:22]}  Nb4 {[%clk 0:00:55]} 19. Nxg4 {[%clk 0:02:15]}  Nxd3 {[%clk 0:00:54]} 20. Rg2 {[%clk 0:02:14]}  Qd7 {[%clk 0:00:44]} 21. Nf6+ {[%clk 0:02:14]} 1-0


[Site "https://www.chess.com"]

[Event "Titled Tuesday Blitz June 27 Early 2023"]
[White "Estrada Nieto, Julian"]
[Black "Mikhaylova, Irina"]
[WhiteFideId "5101018"]
[BlackFideId "4109040"]
[WhiteElo "2498"]
[BlackElo "2318"]
[Result "0-1"]
[Round "9"]
[TimeControl "180+2"]
[Date "2023.06.27"]
[WhiteClock "0:00:38"]
[BlackClock "0:00:15"]
[Board "104"]

1. e4 {[%clk 0:03:00]}  c5 {[%clk 0:02:59]} 2. Nf3 {[%clk 0:03:00]}  Nc6 {[%clk 0:03:00]} 3. Bb5 {[%clk 0:03:00]}  e6 {[%clk 0:03:00]} 4. O-O {[%clk 0:02:59]}  Nge7 {[%clk 0:03:00]} 5. Re1 {[%clk 0:03:00]}  Ng6 {[%clk 0:03:00]} 6. c3 {[%clk 0:02:59]}  Be7 {[%clk 0:03:01]} 7. d4 {[%clk 0:02:59]}  cxd4 {[%clk 0:03:01]} 8. cxd4 {[%clk 0:02:59]}  d5 {[%clk 0:03:02]} 9. e5 {[%clk 0:03:00]}  O-O {[%clk 0:03:02]} 10. Nc3 {[%clk 0:02:56]}  Bd7 {[%clk 0:03:02]} 11. Bd3 {[%clk 0:02:54]}  Rc8 {[%clk 0:03:01]} 12. a3 {[%clk 0:02:51]}  Na5 {[%clk 0:03:00]} 13. g3 {[%clk 0:02:50]}  Re8 {[%clk 0:02:56]} 14. h4 {[%clk 0:02:50]}  Nf8 {[%clk 0:02:56]} 15. Ng5 {[%clk 0:02:44]}  h6 {[%clk 0:01:48]} 16. Nh3 {[%clk 0:02:44]}  f5 {[%clk 0:01:21]} 17. exf6 {[%clk 0:02:41]}  Bxf6 {[%clk 0:01:21]} 18. Bc2 {[%clk 0:02:32]}  Qb6 {[%clk 0:01:09]} 19. Ne2 {[%clk 0:02:05]}  Bb5 {[%clk 0:00:57]} 20. Nhf4 {[%clk 0:02:03]}  Bxe2 {[%clk 0:00:45]} 21. Nxe2 {[%clk 0:02:01]}  Qd6 {[%clk 0:00:37]} 22. Rb1 {[%clk 0:01:58]}  e5 {[%clk 0:00:33]} 23. dxe5 {[%clk 0:01:57]}  Bxe5 {[%clk 0:00:33]} 24. Be3 {[%clk 0:01:51]}  Nc4 {[%clk 0:00:33]} 25. Bd4 {[%clk 0:01:50]}  Qf6 {[%clk 0:00:27]} 26. Kg2 {[%clk 0:01:43]}  Ne6 {[%clk 0:00:23]} 27. Bxe5 {[%clk 0:01:41]}  Nxe5 {[%clk 0:00:22]} 28. Nc3 {[%clk 0:01:26]}  d4 {[%clk 0:00:15]} 29. Ne4 {[%clk 0:01:26]}  Qf8 {[%clk 0:00:13]} 30. Bd3 {[%clk 0:01:21]}  Nxd3 {[%clk 0:00:11]} 31. Qxd3 {[%clk 0:01:21]}  Nc5 {[%clk 0:00:12]} 32. Nxc5 {[%clk 0:01:18]}  Qxc5 {[%clk 0:00:12]} 33. Rbd1 {[%clk 0:01:12]}  Qd5+ {[%clk 0:00:12]} 34. Qf3 {[%clk 0:01:10]}  Qxf3+ {[%clk 0:00:11]} 35. Kxf3 {[%clk 0:01:10]}  Rxe1 {[%clk 0:00:12]} 36. Rxe1 {[%clk 0:01:09]}  Rc2 {[%clk 0:00:12]} 37. Rb1 {[%clk 0:01:00]}  d3 {[%clk 0:00:12]} 38. Ke3 {[%clk 0:00:59]}  d2 {[%clk 0:00:12]} 39. b3 {[%clk 0:00:44]}  Rc1 {[%clk 0:00:12]} 40. Kxd2 {[%clk 0:00:40]}  Rxb1 {[%clk 0:00:13]} 41. Kc2 {[%clk 0:00:40]}  Rf1 {[%clk 0:00:13]} 42. f4 {[%clk 0:00:40]}  Rf3 {[%clk 0:00:13]} 43. b4 {[%clk 0:00:40]}  Kf7 {[%clk 0:00:13]} 44. a4 {[%clk 0:00:40]}  a6 {[%clk 0:00:14]} 45. Kb2 {[%clk 0:00:39]}  Ke6 {[%clk 0:00:14]} 46. a5 {[%clk 0:00:40]}  Kd5 {[%clk 0:00:14]} 47. f5 {[%clk 0:00:40]}  Kc4 {[%clk 0:00:13]} 48. g4 {[%clk 0:00:40]}  Rf4 {[%clk 0:00:13]} 49. g5 {[%clk 0:00:38]}  hxg5 {[%clk 0:00:13]} 50. hxg5 {[%clk 0:00:39]}  Rxf5 {[%clk 0:00:13]} 51. g6 {[%clk 0:00:40]}  Rg5 {[%clk 0:00:13]} 52. Kc2 {[%clk 0:00:40]}  Rxg6 {[%clk 0:00:13]} 53. Kd2 {[%clk 0:00:41]}  Rg3 {[%clk 0:00:14]} 54. Ke2 {[%clk 0:00:41]}  Rb3 {[%clk 0:00:14]} 55. Kf2 {[%clk 0:00:38]}  Kxb4 {[%clk 0:00:15]} 0-1


[Site "https://www.chess.com"]

[Event "Titled Tuesday Blitz June 27 Early 2023"]
[White "Erzhanov, Arman"]
[Black "Ruge, Edison"]
[WhiteFideId "4138821"]
[BlackFideId "4401000"]
[WhiteElo "2491"]
[BlackElo "2229"]
[Result "1/2-1/2"]
[Round "9"]
[TimeControl "180+2"]
[Date "2023.06.27"]
[WhiteClock "0:00:20"]
[BlackClock "0:00:12"]
[Board "105"]

1. e4 {[%clk 0:03:00]}  e5 {[%clk 0:03:00]} 2. Nf3 {[%clk 0:03:00]}  Nc6 {[%clk 0:03:00]} 3. Bb5 {[%clk 0:02:53]}  f5 {[%clk 0:03:00]} 4. d3 {[%clk 0:02:52]}  fxe4 {[%clk 0:02:59]} 5. dxe4 {[%clk 0:02:53]}  Nf6 {[%clk 0:03:00]} 6. Nc3 {[%clk 0:02:46]}  Bb4 {[%clk 0:02:58]} 7. Qd3 {[%clk 0:02:37]}  Qe7 {[%clk 0:02:50]} 8. O-O {[%clk 0:02:35]}  Bxc3 {[%clk 0:02:49]} 9. bxc3 {[%clk 0:02:34]}  d6 {[%clk 0:02:49]} 10. Nh4 {[%clk 0:02:22]}  Be6 {[%clk 0:02:33]} 11. Nf5 {[%clk 0:02:21]}  Qf7 {[%clk 0:02:21]} 12. f4 {[%clk 0:02:15]}  O-O {[%clk 0:02:16]} 13. Bxc6 {[%clk 0:02:13]}  bxc6 {[%clk 0:02:15]} 14. fxe5 {[%clk 0:02:14]}  dxe5 {[%clk 0:02:14]} 15. Qg3 {[%clk 0:02:05]}  Kh8 {[%clk 0:01:55]} 16. Qh4 {[%clk 0:01:55]}  Nxe4 {[%clk 0:01:26]} 17. Qxe4 {[%clk 0:01:51]}  Bxf5 {[%clk 0:01:25]} 18. Qxe5 {[%clk 0:01:38]}  Qg6 {[%clk 0:01:23]} 19. Ba3 {[%clk 0:01:28]}  Rae8 {[%clk 0:01:00]} 20. Qxc7 {[%clk 0:01:19]}  Re2 {[%clk 0:00:48]} 21. Qg3 {[%clk 0:01:04]}  Rfe8 {[%clk 0:00:37]} 22. Qxg6 {[%clk 0:00:50]}  hxg6 {[%clk 0:00:35]} 23. Bc5 {[%clk 0:00:50]}  Rxc2 {[%clk 0:00:34]} 24. Bxa7 {[%clk 0:00:47]}  Rxc3 {[%clk 0:00:31]} 25. Rfe1 {[%clk 0:00:43]}  Rxe1+ {[%clk 0:00:28]} 26. Rxe1 {[%clk 0:00:43]}  Ra3 {[%clk 0:00:28]} 27. Bd4 {[%clk 0:00:37]}  Rxa2 {[%clk 0:00:28]} 28. Re7 {[%clk 0:00:37]}  Kh7 {[%clk 0:00:20]} 29. Rxg7+ {[%clk 0:00:37]}  Kh6 {[%clk 0:00:19]} 30. Re7 {[%clk 0:00:36]}  g5 {[%clk 0:00:15]} 31. h3 {[%clk 0:00:35]}  Kg6 {[%clk 0:00:14]} 32. g4 {[%clk 0:00:33]}  Bd3 {[%clk 0:00:13]} 33. Re6+ {[%clk 0:00:32]}  Kf7 {[%clk 0:00:14]} 34. Rxc6 {[%clk 0:00:32]}  Be4 {[%clk 0:00:13]} 35. Rf6+ {[%clk 0:00:32]}  Ke7 {[%clk 0:00:12]} 36. Rf2 {[%clk 0:00:18]}  Rxf2 {[%clk 0:00:12]} 37. Kxf2 {[%clk 0:00:18]}  Kf7 {[%clk 0:00:12]} 38. Ke3 {[%clk 0:00:17]}  Bg2 {[%clk 0:00:12]} 39. Kf2 {[%clk 0:00:15]}  Bxh3 {[%clk 0:00:10]} 40. Kg3 {[%clk 0:00:16]}  Bxg4 {[%clk 0:00:11]} 41. Kxg4 {[%clk 0:00:17]}  Kg6 {[%clk 0:00:11]} 42. Bc3 {[%clk 0:00:17]}  Kf7 {[%clk 0:00:10]} 43. Bb4 {[%clk 0:00:18]}  Kg8 {[%clk 0:00:10]} 44. Ba5 {[%clk 0:00:19]}  Kh7 {[%clk 0:00:11]} 45. Bd8 {[%clk 0:00:19]}  Kg8 {[%clk 0:00:12]} 46. Bc7 {[%clk 0:00:20]}  Kf7 {[%clk 0:00:12]} 47. Bg3 {[%clk 0:00:21]}  Kg8 {[%clk 0:00:12]} 48. Kf5 {[%clk 0:00:21]}  Kf7 {[%clk 0:00:12]} 49. Kxg5 {[%clk 0:00:20]} 1/2-1/2


[Site "https://www.chess.com"]

[Event "Titled Tuesday Blitz June 27 Early 2023"]
[White "Gomes, Luiz Alexandre de Souza"]
[Black "Kuzmin, Roman"]
[WhiteFideId "2102790"]
[BlackFideId "44134932"]
[WhiteElo "2338"]
[BlackElo "2516"]
[Result "0-1"]
[Round "9"]
[TimeControl "180+2"]
[Date "2023.06.27"]
[WhiteClock "0:01:18"]
[BlackClock "0:00:59"]
[Board "110"]

1. e4 {[%clk 0:03:00]}  c5 {[%clk 0:02:55]} 2. Nf3 {[%clk 0:03:00]}  d6 {[%clk 0:02:54]} 3. d4 {[%clk 0:03:00]}  cxd4 {[%clk 0:02:55]} 4. Nxd4 {[%clk 0:03:00]}  Nf6 {[%clk 0:02:55]} 5. Nc3 {[%clk 0:03:01]}  a6 {[%clk 0:02:55]} 6. Rg1 {[%clk 0:03:01]}  b5 {[%clk 0:02:48]} 7. a3 {[%clk 0:03:01]}  Bb7 {[%clk 0:02:49]} 8. Bd3 {[%clk 0:03:02]}  Nbd7 {[%clk 0:02:46]} 9. g4 {[%clk 0:03:01]}  h6 {[%clk 0:02:45]} 10. h4 {[%clk 0:03:01]}  g6 {[%clk 0:02:35]} 11. Be3 {[%clk 0:03:00]}  Nc5 {[%clk 0:02:35]} 12. f3 {[%clk 0:02:38]}  Bg7 {[%clk 0:02:27]} 13. Qd2 {[%clk 0:02:35]}  Nfd7 {[%clk 0:02:19]} 14. O-O-O {[%clk 0:02:32]}  Rc8 {[%clk 0:02:18]} 15. Kb1 {[%clk 0:02:32]}  Nb6 {[%clk 0:02:17]} 16. h5 {[%clk 0:02:17]}  Nc4 {[%clk 0:02:09]} 17. Bxc4 {[%clk 0:02:16]}  bxc4 {[%clk 0:02:10]} 18. hxg6 {[%clk 0:02:17]}  fxg6 {[%clk 0:02:11]} 19. Qe2 {[%clk 0:02:06]}  e5 {[%clk 0:01:57]} 20. Qxc4 {[%clk 0:01:57]}  exd4 {[%clk 0:01:54]} 21. Bxd4 {[%clk 0:01:57]}  Bxd4 {[%clk 0:01:47]} 22. Qxd4 {[%clk 0:01:57]}  O-O {[%clk 0:01:38]} 23. Qxd6 {[%clk 0:01:54]}  Qxd6 {[%clk 0:01:36]} 24. Rxd6 {[%clk 0:01:55]}  Rc6 {[%clk 0:01:29]} 25. Rgd1 {[%clk 0:01:52]}  Rxf3 {[%clk 0:01:24]} 26. Rxc6 {[%clk 0:01:51]}  Bxc6 {[%clk 0:01:25]} 27. Rd6 {[%clk 0:01:51]}  Be8 {[%clk 0:01:18]} 28. Nd5 {[%clk 0:01:43]}  Nxe4 {[%clk 0:01:10]} 29. Rxa6 {[%clk 0:01:43]}  Bf7 {[%clk 0:01:03]} 30. Ne7+ {[%clk 0:01:21]}  Kf8 {[%clk 0:01:00]} 31. Nc6 {[%clk 0:01:18]}  Rf1# {[%clk 0:00:59]} 0-1


[Site "https://www.chess.com"]

[Event "Titled Tuesday Blitz June 27 Early 2023"]
[White "Eidelman, Gabriel"]
[Black "Osinovsky, Stepan"]
[WhiteFideId "30910544"]
[BlackFideId "4157354"]
[WhiteElo "2436"]
[BlackElo "2317"]
[Result "1-0"]
[Round "9"]
[TimeControl "180+2"]
[Date "2023.06.27"]
[WhiteClock "0:00:12"]
[BlackClock "0:00:00"]
[Board "112"]

1. Nf3 {[%clk 0:03:00]}  Nf6 {[%clk 0:02:59]} 2. c4 {[%clk 0:03:00]}  g6 {[%clk 0:03:00]} 3. Nc3 {[%clk 0:02:59]}  Bg7 {[%clk 0:03:01]} 4. g3 {[%clk 0:02:55]}  O-O {[%clk 0:03:00]} 5. Bg2 {[%clk 0:02:56]}  Re8 {[%clk 0:02:58]} 6. O-O {[%clk 0:02:52]}  e5 {[%clk 0:02:58]} 7. e4 {[%clk 0:02:41]}  Nc6 {[%clk 0:02:50]} 8. d3 {[%clk 0:02:30]}  Nd4 {[%clk 0:02:47]} 9. Nxd4 {[%clk 0:02:27]}  exd4 {[%clk 0:02:47]} 10. Ne2 {[%clk 0:02:20]}  c6 {[%clk 0:02:27]} 11. Nxd4 {[%clk 0:02:01]}  d5 {[%clk 0:02:26]} 12. cxd5 {[%clk 0:01:46]}  cxd5 {[%clk 0:02:27]} 13. Nb5 {[%clk 0:01:28]}  Bg4 {[%clk 0:01:26]} 14. Qc2 {[%clk 0:01:18]}  Rc8 {[%clk 0:01:21]} 15. Qb1 {[%clk 0:01:19]}  dxe4 {[%clk 0:01:03]} 16. dxe4 {[%clk 0:01:18]}  Be2 {[%clk 0:01:02]} 17. Nxa7 {[%clk 0:01:08]}  Bxf1 {[%clk 0:01:02]} 18. Bxf1 {[%clk 0:01:01]}  Ra8 {[%clk 0:00:52]} 19. Be3 {[%clk 0:00:54]}  Nxe4 {[%clk 0:00:49]} 20. Bg2 {[%clk 0:00:54]}  Nd2 {[%clk 0:00:33]} 21. Qc2 {[%clk 0:00:37]}  Rxe3 {[%clk 0:00:18]} 22. fxe3 {[%clk 0:00:38]}  Rxa7 {[%clk 0:00:18]} 23. Rd1 {[%clk 0:00:39]}  Rxa2 {[%clk 0:00:17]} 24. Rxd2 {[%clk 0:00:37]}  Ra1+ {[%clk 0:00:17]} 25. Kf2 {[%clk 0:00:31]}  Qf6+ {[%clk 0:00:17]} 26. Bf3 {[%clk 0:00:32]}  Bf8 {[%clk 0:00:16]} 27. Qc8 {[%clk 0:00:30]}  Kg7 {[%clk 0:00:15]} 28. Kg2 {[%clk 0:00:28]}  b6 {[%clk 0:00:13]} 29. Rf2 {[%clk 0:00:26]}  Ra7 {[%clk 0:00:08]} 30. Bd5 {[%clk 0:00:25]}  Qe5 {[%clk 0:00:08]} 31. Qc4 {[%clk 0:00:20]}  Qxe3 {[%clk 0:00:05]} 32. Bxf7 {[%clk 0:00:11]}  Rxf7 {[%clk 0:00:06]} 33. Qxf7+ {[%clk 0:00:11]}  Kh6 {[%clk 0:00:05]} 34. Qxf8+ {[%clk 0:00:11]}  Kh5 {[%clk 0:00:00]} 35. Qf3+ {[%clk 0:00:12]} 1-0


[Site "https://www.chess.com"]

[Event "Titled Tuesday Blitz June 27 Early 2023"]
[White "Tuleyeva-Aketayeva, Dana"]
[Black "Tarasova, Viktoriya"]
[WhiteFideId "13701932"]
[BlackFideId "4175840"]
[WhiteElo "2232"]
[BlackElo "2364"]
[Result "1/2-1/2"]
[Round "9"]
[TimeControl "180+2"]
[Date "2023.06.27"]
[WhiteClock "0:00:18"]
[BlackClock "0:00:13"]
[Board "118"]

1. d4 {[%clk 0:03:00]}  Nf6 {[%clk 0:02:59]} 2. Nf3 {[%clk 0:03:01]}  e6 {[%clk 0:02:56]} 3. g3 {[%clk 0:03:01]}  b6 {[%clk 0:02:56]} 4. Bg2 {[%clk 0:03:02]}  Bb7 {[%clk 0:02:56]} 5. O-O {[%clk 0:03:03]}  c5 {[%clk 0:02:57]} 6. c3 {[%clk 0:03:01]}  cxd4 {[%clk 0:02:53]} 7. cxd4 {[%clk 0:03:01]}  d5 {[%clk 0:02:53]} 8. Nc3 {[%clk 0:03:01]}  Be7 {[%clk 0:02:53]} 9. Qa4+ {[%clk 0:02:56]}  Bc6 {[%clk 0:02:45]} 10. Qd1 {[%clk 0:02:54]}  O-O {[%clk 0:02:44]} 11. Ne5 {[%clk 0:02:53]}  Bb7 {[%clk 0:02:44]} 12. b3 {[%clk 0:02:50]}  Nbd7 {[%clk 0:02:44]} 13. Bb2 {[%clk 0:02:49]}  Rc8 {[%clk 0:02:38]} 14. Rc1 {[%clk 0:02:47]}  Nxe5 {[%clk 0:02:38]} 15. dxe5 {[%clk 0:02:48]}  Nd7 {[%clk 0:02:38]} 16. Nb5 {[%clk 0:02:46]}  a6 {[%clk 0:02:19]} 17. Nd4 {[%clk 0:02:31]}  Nc5 {[%clk 0:02:11]} 18. b4 {[%clk 0:02:16]}  Ne4 {[%clk 0:02:09]} 19. a3 {[%clk 0:02:01]}  a5 {[%clk 0:01:52]} 20. b5 {[%clk 0:01:42]}  Qd7 {[%clk 0:01:43]} 21. Bxe4 {[%clk 0:01:27]}  dxe4 {[%clk 0:01:31]} 22. Nc6 {[%clk 0:01:27]}  Bxc6 {[%clk 0:01:26]} 23. bxc6 {[%clk 0:01:25]}  Qc7 {[%clk 0:01:24]} 24. Qd4 {[%clk 0:01:05]}  Bc5 {[%clk 0:01:16]} 25. Qxe4 {[%clk 0:01:02]}  Qxc6 {[%clk 0:01:16]} 26. Qxc6 {[%clk 0:00:59]}  Rxc6 {[%clk 0:01:17]} 27. e3 {[%clk 0:00:58]}  Rfc8 {[%clk 0:01:16]} 28. Rfd1 {[%clk 0:00:57]}  h6 {[%clk 0:01:13]} 29. Rc2 {[%clk 0:00:43]}  Be7 {[%clk 0:00:56]} 30. Rxc6 {[%clk 0:00:41]}  Rxc6 {[%clk 0:00:56]} 31. Rd7 {[%clk 0:00:41]}  Bc5 {[%clk 0:00:43]} 32. Rd8+ {[%clk 0:00:36]}  Kh7 {[%clk 0:00:43]} 33. a4 {[%clk 0:00:32]}  Kg6 {[%clk 0:00:37]} 34. Rb8 {[%clk 0:00:24]}  Rc7 {[%clk 0:00:35]} 35. Kg2 {[%clk 0:00:19]}  Rd7 {[%clk 0:00:34]} 36. Kf3 {[%clk 0:00:14]}  Rd2 {[%clk 0:00:34]} 37. Bc3 {[%clk 0:00:14]}  Ra2 {[%clk 0:00:33]} 38. Bd4 {[%clk 0:00:12]}  Bxd4 {[%clk 0:00:27]} 39. exd4 {[%clk 0:00:12]}  Rxa4 {[%clk 0:00:27]} 40. Rxb6 {[%clk 0:00:13]}  Rxd4 {[%clk 0:00:27]} 41. Rb5 {[%clk 0:00:12]}  Ra4 {[%clk 0:00:27]} 42. Kg2 {[%clk 0:00:10]}  Ra2 {[%clk 0:00:25]} 43. g4 {[%clk 0:00:09]}  a4 {[%clk 0:00:25]} 44. Ra5 {[%clk 0:00:09]}  Kg5 {[%clk 0:00:22]} 45. h3 {[%clk 0:00:07]}  Kf4 {[%clk 0:00:16]} 46. Ra7 {[%clk 0:00:05]}  Kxe5 {[%clk 0:00:16]} 47. Rxf7 {[%clk 0:00:05]}  g6 {[%clk 0:00:14]} 48. Ra7 {[%clk 0:00:04]}  a3 {[%clk 0:00:15]} 49. Ra4 {[%clk 0:00:04]}  Ra1 {[%clk 0:00:15]} 50. Kh2 {[%clk 0:00:03]}  a2 {[%clk 0:00:12]} 51. Kg2 {[%clk 0:00:03]}  Kd5 {[%clk 0:00:12]} 52. Ra3 {[%clk 0:00:03]}  Kc4 {[%clk 0:00:11]} 53. Ra6 {[%clk 0:00:02]}  e5 {[%clk 0:00:11]} 54. Ra7 {[%clk 0:00:02]}  Kd4 {[%clk 0:00:11]} 55. Ra4+ {[%clk 0:00:02]}  Kd5 {[%clk 0:00:11]} 56. Ra5+ {[%clk 0:00:02]}  Ke6 {[%clk 0:00:12]} 57. Ra6+ {[%clk 0:00:03]}  Kf7 {[%clk 0:00:11]} 58. Ra5 {[%clk 0:00:04]}  Kf6 {[%clk 0:00:11]} 59. Ra6+ {[%clk 0:00:04]}  Kg5 {[%clk 0:00:11]} 60. Ra4 {[%clk 0:00:05]}  e4 {[%clk 0:00:10]} 61. Ra5+ {[%clk 0:00:05]}  Kf4 {[%clk 0:00:10]} 62. Ra4 {[%clk 0:00:05]}  g5 {[%clk 0:00:07]} 63. Ra6 {[%clk 0:00:05]}  Ke5 {[%clk 0:00:04]} 64. Ra5+ {[%clk 0:00:06]}  Kd4 {[%clk 0:00:04]} 65. Ra4+ {[%clk 0:00:06]}  Kd3 {[%clk 0:00:05]} 66. Ra3+ {[%clk 0:00:06]}  Kd2 {[%clk 0:00:04]} 67. Ra5 {[%clk 0:00:06]}  Kd3 {[%clk 0:00:04]} 68. Ra3+ {[%clk 0:00:06]}  Kd2 {[%clk 0:00:04]} 69. Ra4 {[%clk 0:00:06]}  e3 {[%clk 0:00:04]} 70. fxe3 {[%clk 0:00:05]}  Kxe3 {[%clk 0:00:05]} 71. Ra3+ {[%clk 0:00:05]}  Ke2 {[%clk 0:00:05]} 72. Ra4 {[%clk 0:00:05]}  Kd2 {[%clk 0:00:05]} 73. Ra5 {[%clk 0:00:06]}  Kc2 {[%clk 0:00:06]} 74. Rc5+ {[%clk 0:00:06]}  Kb3 {[%clk 0:00:06]} 75. Ra5 {[%clk 0:00:06]}  Kb4 {[%clk 0:00:05]} 76. Ra8 {[%clk 0:00:06]}  Kb3 {[%clk 0:00:05]} 77. Rb8+ {[%clk 0:00:06]}  Kc3 {[%clk 0:00:06]} 78. Rc8+ {[%clk 0:00:07]}  Kd4 {[%clk 0:00:07]} 79. Rd8+ {[%clk 0:00:07]}  Ke5 {[%clk 0:00:08]} 80. Re8+ {[%clk 0:00:08]}  Kf4 {[%clk 0:00:08]} 81. Ra8 {[%clk 0:00:08]}  Ke3 {[%clk 0:00:07]} 82. Ra3+ {[%clk 0:00:09]}  Kd2 {[%clk 0:00:07]} 83. Ra7 {[%clk 0:00:09]}  Kc1 {[%clk 0:00:07]} 84. Rc7+ {[%clk 0:00:09]}  Kb1 {[%clk 0:00:07]} 85. Rb7+ {[%clk 0:00:10]}  Kc2 {[%clk 0:00:08]} 86. Rc7+ {[%clk 0:00:10]}  Kd3 {[%clk 0:00:08]} 87. Rd7+ {[%clk 0:00:11]}  Ke4 {[%clk 0:00:09]} 88. Re7+ {[%clk 0:00:11]}  Kf4 {[%clk 0:00:10]} 89. Ra7 {[%clk 0:00:11]}  Ke5 {[%clk 0:00:09]} 90. Ra5+ {[%clk 0:00:12]}  Kf6 {[%clk 0:00:09]} 91. Ra6+ {[%clk 0:00:12]}  Kf7 {[%clk 0:00:10]} 92. Ra7+ {[%clk 0:00:12]}  Ke6 {[%clk 0:00:10]} 93. Ra6+ {[%clk 0:00:13]}  Ke5 {[%clk 0:00:11]} 94. Ra5+ {[%clk 0:00:13]}  Kd4 {[%clk 0:00:12]} 95. Ra4+ {[%clk 0:00:13]}  Kc3 {[%clk 0:00:11]} 96. Ra8 {[%clk 0:00:14]}  Kb3 {[%clk 0:00:12]} 97. Rb8+ {[%clk 0:00:14]}  Kc2 {[%clk 0:00:11]} 98. Rc8+ {[%clk 0:00:14]}  Kd3 {[%clk 0:00:12]} 99. Rd8+ {[%clk 0:00:15]}  Ke4 {[%clk 0:00:13]} 100. Re8+ {[%clk 0:00:15]}  Kf4 {[%clk 0:00:13]} 101. Rf8+ {[%clk 0:00:15]}  Ke5 {[%clk 0:00:14]} 102. Re8+ {[%clk 0:00:16]}  Kf6 {[%clk 0:00:14]} 103. Ra8 {[%clk 0:00:16]}  Kg6 {[%clk 0:00:14]} 104. Ra5 {[%clk 0:00:16]}  h5 {[%clk 0:00:12]} 105. Ra6+ {[%clk 0:00:16]}  Kg7 {[%clk 0:00:13]} 106. gxh5 {[%clk 0:00:16]}  Kh7 {[%clk 0:00:13]} 107. Ra5 {[%clk 0:00:16]}  Kh6 {[%clk 0:00:13]} 108. Ra6+ {[%clk 0:00:16]}  Kxh5 {[%clk 0:00:13]} 109. Ra4 {[%clk 0:00:16]}  Kg6 {[%clk 0:00:11]} 110. Ra5 {[%clk 0:00:17]}  Kh5 {[%clk 0:00:12]} 111. Ra4 {[%clk 0:00:17]}  Kg6 {[%clk 0:00:12]} 112. Ra5 {[%clk 0:00:18]}  Kh5 {[%clk 0:00:13]} 113. Ra4 {[%clk 0:00:18]} 1/2-1/2


[Site "https://www.chess.com"]